{"text_format":"3","workbook":"xlsx","n_sheets":7,"sheets":["Mandag","Tirsdag","Onsdag","Torsdag","Fredag","Lørdag","Søndag"],"not_rendered":{"defined_names":21},"read":"whole","date_system":"1900"}

{"sheet":"Mandag","index":0,"n_rows":10,"n_cols":13,"rows_kept":10,"merged":[[0,1,0,4],[1,2,1,4],[2,2,2,4]]}
[null,"Tidsplan for skift"]
[null,"Uken som begynner: ","Dato"]
[null,"Avdelingsnavn: ","Navn"]
[]
[null,"MANDAG","07:00","08:00","09:00","10:00","11:00","12:00","13:00","14:00","15:00","Sykdom?","TOTALT"]
[null,"Navn 1","leder","leder","leder","leder","leder","leder","leder","leder","leder",null,{"$f":"COUNTIF(Mandag[[#This Row],[07:00]:[15:00]],\"*\")","v":9}]
[null,"Navn 2",null,"kasserer","kasserer","kasserer","kasserer",{"$nulls":5},{"$f":"COUNTIF(Mandag[[#This Row],[07:00]:[15:00]],\"*\")","v":4}]
[null,"Navn 3",null,"sentralbord","sentralbord","sentralbord","sentralbord ","sentralbord","sentralbord","sentralbord",null,null,{"$f":"COUNTIF(Mandag[[#This Row],[07:00]:[15:00]],\"*\")","v":7}]
[null,"Navn 4",null,"sentralbord","sentralbord","sentralbord","sentralbord ","sentralbord","sentralbord","sentralbord",null,null,{"$f":"COUNTIF(Mandag[[#This Row],[07:00]:[15:00]],\"*\")","v":7}]
[null,"Navn 5",{"$nulls":9},"Sykdom",{"$f":"COUNTIF(Mandag[[#This Row],[07:00]:[15:00]],\"*\")","v":0}]

{"sheet":"Tirsdag","index":1,"n_rows":10,"n_cols":13,"rows_kept":10,"merged":[[0,1,0,4],[1,2,1,4],[2,2,2,4]]}
[null,"Tidsplan for skift"]
[null,"Uken som begynner: ",{"$f":"Mandag!C2","v":"Dato"}]
[null,"Avdelingsnavn: ",{"$f":"Mandag!C3","v":"Navn"}]
[]
[null,"TIRSDAG","07:00","08:00","09:00","10:00","11:00","12:00","13:00","14:00","15:00","Sykdom?","TOTALT"]
[null,"Navn 1","leder","leder","leder","leder","leder","leder","leder","leder","leder",null,{"$f":"COUNTIF(Tirsdag[[#This Row],[07:00]:[15:00]],\"*\")","v":9}]
[null,"Navn 2",null,"kasserer","kasserer","kasserer","kasserer",{"$nulls":5},{"$f":"COUNTIF(Tirsdag[[#This Row],[07:00]:[15:00]],\"*\")","v":4}]
[null,"Navn 3",null,"sentralbord","sentralbord","sentralbord","sentralbord ","sentralbord","sentralbord","sentralbord",null,null,{"$f":"COUNTIF(Tirsdag[[#This Row],[07:00]:[15:00]],\"*\")","v":7}]
[null,"Navn 4",null,"sentralbord","sentralbord","sentralbord","sentralbord ","sentralbord","sentralbord","sentralbord",null,null,{"$f":"COUNTIF(Tirsdag[[#This Row],[07:00]:[15:00]],\"*\")","v":7}]
[null,"Navn 5",{"$nulls":9},"Sykdom",{"$f":"COUNTIF(Tirsdag[[#This Row],[07:00]:[15:00]],\"*\")","v":0}]

{"sheet":"Onsdag","index":2,"n_rows":10,"n_cols":13,"rows_kept":10,"merged":[[0,1,0,4],[1,2,1,4],[2,2,2,4]]}
[null,"Tidsplan for skift"]
[null,"Uken som begynner: ",{"$f":"Mandag!C2","v":"Dato"}]
[null,"Avdelingsnavn: ",{"$f":"Mandag!C3","v":"Navn"}]
[]
[null,"ONSDAG","07:00","08:00","09:00","10:00","11:00","12:00","13:00","14:00","15:00","Sykdom?","TOTALT"]
[null,"Navn 1","leder","leder","leder","leder","leder","leder","leder","leder","leder",null,{"$f":"COUNTIF(Onsdag[[#This Row],[07:00]:[15:00]],\"*\")","v":9}]
[null,"Navn 2",null,"kasserer","kasserer","kasserer","kasserer",{"$nulls":5},{"$f":"COUNTIF(Onsdag[[#This Row],[07:00]:[15:00]],\"*\")","v":4}]
[null,"Navn 3",null,"sentralbord","sentralbord","sentralbord","sentralbord ","sentralbord","sentralbord","sentralbord",null,null,{"$f":"COUNTIF(Onsdag[[#This Row],[07:00]:[15:00]],\"*\")","v":7}]
[null,"Navn 4",null,"sentralbord","sentralbord","sentralbord","sentralbord ","sentralbord","sentralbord","sentralbord",null,null,{"$f":"COUNTIF(Onsdag[[#This Row],[07:00]:[15:00]],\"*\")","v":7}]
[null,"Navn 5",{"$nulls":9},"Sykdom",{"$f":"COUNTIF(Onsdag[[#This Row],[07:00]:[15:00]],\"*\")","v":0}]

{"sheet":"Torsdag","index":3,"n_rows":10,"n_cols":13,"rows_kept":10,"merged":[[0,1,0,4],[1,2,1,4],[2,2,2,4]]}
[null,"Tidsplan for skift"]
[null,"Uken som begynner: ",{"$f":"Mandag!C2","v":"Dato"}]
[null,"Avdelingsnavn: ",{"$f":"Mandag!C3","v":"Navn"}]
[]
[null,"TORSDAG","07:00","08:00","09:00","10:00","11:00","12:00","13:00","14:00","15:00","Sykdom?","TOTALT"]
[null,"Navn 1","leder","leder","leder","leder","leder","leder","leder","leder","leder",null,{"$f":"COUNTIF(Torsdag[[#This Row],[07:00]:[15:00]],\"*\")","v":9}]
[null,"Navn 2",null,"kasserer","kasserer","kasserer","kasserer",{"$nulls":5},{"$f":"COUNTIF(Torsdag[[#This Row],[07:00]:[15:00]],\"*\")","v":4}]
[null,"Navn 3",null,"sentralbord","sentralbord","sentralbord","sentralbord ","sentralbord","sentralbord","sentralbord",null,null,{"$f":"COUNTIF(Torsdag[[#This Row],[07:00]:[15:00]],\"*\")","v":7}]
[null,"Navn 4",null,"sentralbord","sentralbord","sentralbord","sentralbord ","sentralbord","sentralbord","sentralbord",null,null,{"$f":"COUNTIF(Torsdag[[#This Row],[07:00]:[15:00]],\"*\")","v":7}]
[null,"Navn 5",{"$nulls":9},"Sykdom",{"$f":"COUNTIF(Torsdag[[#This Row],[07:00]:[15:00]],\"*\")","v":0}]

{"sheet":"Fredag","index":4,"n_rows":10,"n_cols":13,"rows_kept":10,"merged":[[0,1,0,4],[1,2,1,4],[2,2,2,4]]}
[null,"Tidsplan for skift"]
[null,"Uken som begynner: ",{"$f":"Mandag!C2","v":"Dato"}]
[null,"Avdelingsnavn: ",{"$f":"Mandag!C3","v":"Navn"}]
[]
[null,"FREDAG","07:00","08:00","09:00","10:00","11:00","12:00","13:00","14:00","15:00","Sykdom?","TOTALT"]
[null,"Navn 1","leder","leder","leder","leder","leder","leder","leder","leder","leder",null,{"$f":"COUNTIF(Fredag[[#This Row],[07:00]:[15:00]],\"*\")","v":9}]
[null,"Navn 2",null,"kasserer","kasserer","kasserer","kasserer",{"$nulls":5},{"$f":"COUNTIF(Fredag[[#This Row],[07:00]:[15:00]],\"*\")","v":4}]
[null,"Navn 3",null,"sentralbord","sentralbord","sentralbord","sentralbord ","sentralbord","sentralbord","sentralbord",null,null,{"$f":"COUNTIF(Fredag[[#This Row],[07:00]:[15:00]],\"*\")","v":7}]
[null,"Navn 4",null,"sentralbord","sentralbord","sentralbord","sentralbord ","sentralbord","sentralbord","sentralbord",null,null,{"$f":"COUNTIF(Fredag[[#This Row],[07:00]:[15:00]],\"*\")","v":7}]
[null,"Navn 5",{"$nulls":9},"Sykdom",{"$f":"COUNTIF(Fredag[[#This Row],[07:00]:[15:00]],\"*\")","v":0}]

{"sheet":"Lørdag","index":5,"n_rows":10,"n_cols":13,"rows_kept":10,"merged":[[0,1,0,4],[1,2,1,4],[2,2,2,4]]}
[null,"Tidsplan for skift"]
[null,"Uken som begynner: ",{"$f":"Mandag!C2","v":"Dato"}]
[null,"Avdelingsnavn: ",{"$f":"Mandag!C3","v":"Navn"}]
[]
[null,"LØRDAG","07:00","08:00","09:00","10:00","11:00","12:00","13:00","14:00","15:00","Sykdom?","TOTALT"]
[null,"Navn 1","leder","leder","leder","leder","leder","leder","leder","leder","leder",null,{"$f":"COUNTIF(Lørdag[[#This Row],[07:00]:[15:00]],\"*\")","v":9}]
[null,"Navn 2",null,"kasserer","kasserer","kasserer","kasserer",{"$nulls":5},{"$f":"COUNTIF(Lørdag[[#This Row],[07:00]:[15:00]],\"*\")","v":4}]
[null,"Navn 3",null,"sentralbord","sentralbord","sentralbord","sentralbord ","sentralbord","sentralbord","sentralbord",null,null,{"$f":"COUNTIF(Lørdag[[#This Row],[07:00]:[15:00]],\"*\")","v":7}]
[null,"Navn 4",null,"sentralbord","sentralbord","sentralbord","sentralbord ","sentralbord","sentralbord","sentralbord",null,null,{"$f":"COUNTIF(Lørdag[[#This Row],[07:00]:[15:00]],\"*\")","v":7}]
[null,"Navn 5",{"$nulls":9},"Sykdom",{"$f":"COUNTIF(Lørdag[[#This Row],[07:00]:[15:00]],\"*\")","v":0}]

{"sheet":"Søndag","index":6,"n_rows":10,"n_cols":13,"rows_kept":10,"merged":[[0,1,0,4],[1,2,1,4],[2,2,2,4]]}
[null,"Tidsplan for skift"]
[null,"Uken som begynner: ",{"$f":"Mandag!C2","v":"Dato"}]
[null,"Avdelingsnavn: ",{"$f":"Mandag!C3","v":"Navn"}]
[]
[null,"SØNDAG","07:00","08:00","09:00","10:00","11:00","12:00","13:00","14:00","15:00","Sykdom?","TOTALT"]
[null,"Navn 1","leder","leder","leder","leder","leder","leder","leder","leder","leder",null,{"$f":"COUNTIF(Søndag[[#This Row],[07:00]:[15:00]],\"*\")","v":9}]
[null,"Navn 2",null,"kasserer","kasserer","kasserer","kasserer",{"$nulls":5},{"$f":"COUNTIF(Søndag[[#This Row],[07:00]:[15:00]],\"*\")","v":4}]
[null,"Navn 3",null,"sentralbord","sentralbord","sentralbord","sentralbord ","sentralbord","sentralbord","sentralbord",null,null,{"$f":"COUNTIF(Søndag[[#This Row],[07:00]:[15:00]],\"*\")","v":7}]
[null,"Navn 4",null,"sentralbord","sentralbord","sentralbord","sentralbord ","sentralbord","sentralbord","sentralbord",null,null,{"$f":"COUNTIF(Søndag[[#This Row],[07:00]:[15:00]],\"*\")","v":7}]
[null,"Navn 5",{"$nulls":9},"Sykdom",{"$f":"COUNTIF(Søndag[[#This Row],[07:00]:[15:00]],\"*\")","v":0}]